fUSD/lending_fUSD_20250320
["ID","MTS","AMOUNT","RATE_DAILY","PERIOD"]
[356460288,1742483483106,-500.0,0.00046027,120]
[356460289,1742483483115,-501.99,0.00046027,120]
[356460290,1742483483125,-500.0,0.00046027,120]
[356460291,1742483483134,-500.0,0.00046027,120]
[356460292,1742483483144,-500.0,0.00046027,10]
[356460293,1742483483154,-704.86,0.00046027,120]
[356460294,1742483483164,-500.0,0.00046027,120]
[356460295,1742483483173,-1058.89,0.00046027,120]
[356460296,1742483483183,-500.0,0.00046027,120]
[356460297,1742483483193,-500.0,0.00046027,120]
[356460298,1742483483203,-500.0,0.00046027,120]
[356460299,1742483483213,-280.9,0.00046027,7]
[356460300,1742483483223,-1000.0,0.00046027,120]
[356460301,1742483483233,-399.57899161,0.00046027,120]
[356460302,1742483483244,-538.77122461,0.00046027,120]
[356460303,1742483483254,-500.0,0.00046027,120]
[356460304,1742483483264,-508.52906328,0.00046027,120]
[356460305,1742483483274,-500.0,0.00046027,120]
[356460306,1742483483284,-704.1,0.00046027,120]
[356460307,1742483483295,-500.0,0.00046027,120]
[356460308,1742483483305,-500.0,0.00046027,120]
[356460309,1742483483314,-1471.63,0.00046027,120]
[356460310,1742483483324,-500.0,0.00046027,7]
[356460311,1742483483334,-500.0,0.00046027,120]
[356460312,1742483483344,-1183.6,0.00046027,120]
[356460313,1742483483354,-164.12523215,0.00046027,120]
[356460314,1742483483364,-500.0,0.00046027,120]
[356460315,1742483483374,-500.0,0.00046027,120]
[356460316,1742483483384,-500.0,0.00046027,120]
[356460317,1742483483393,-500.0,0.00046027,120]
[356460318,1742483483403,-731.59,0.00046027,2]
[356460319,1742483483413,-744.12,0.00046027,120]
[356460320,1742483483423,-500.0,0.00046027,120]
[356460321,1742483483433,-576.29,0.00046027,120]
[356460322,1742483483443,-551.66169819,0.00046027,120]
[356460323,1742483483454,-500.0,0.00046027,60]
[356460324,1742483483464,-500.0,0.00046027,120]
[356460325,1742483483474,-500.0,0.00046027,120]
[356460326,1742483483483,-500.0,0.00046027,120]
[356460327,1742483483494,-500.0,0.00046027,120]
[356460328,1742483483505,-272.19,0.00046027,120]
[356460329,1742483483514,-643.51,0.00046027,120]
[356460330,1742483483524,-500.0,0.00046027,120]
[356460331,1742483483535,-500.0,0.00046027,120]
[356460332,1742483483544,-500.0,0.00046027,120]
[356460333,1742483483554,-577.94747222,0.00046027,120]
[356460334,1742483483563,-500.0,0.00046027,120]
[356460335,1742483483573,-500.0,0.00046027,120]
[356460336,1742483483584,-500.0,0.00046027,120]
[356460337,1742483483594,-500.0,0.00046027,120]
[356460338,1742483483604,-487.55401833,0.00046027,120]
[356460339,1742483483614,-398.48730801,0.00046027,120]
[356460340,1742483483624,-500.0,0.00046027,120]
[356460341,1742483483634,-500.0,0.00046027,120]
[356460342,1742483483644,-500.0,0.00046027,120]
[356460343,1742483483654,-500.0,0.00046027,120]
[356460344,1742483483665,-49576.28,0.00046027,120]
[356460345,1742483483675,-541.66,0.00046027,120]
[356460346,1742483483685,-501.33837911,0.00046066,60]
[356460347,1742483483694,-299.44342,0.000461,120]
[356460348,1742483483703,-190.09,0.00046105,8]
[356460349,1742483483713,-208.32266273,0.0004618,120]
[356460350,1742483483722,-250.0,0.0004618,30]
[356460351,1742483483732,-105819.77227962,0.00046187,30]
[356460352,1742483483741,-4945725.78665489,0.00046187,120]
[356460353,1742483483752,-500.0,0.00046187,120]
[356460354,1742483483762,-1076.10091991,0.00046187,30]
[356460355,1742483483772,-150.0,0.00046187,30]
[356460356,1742483483784,-1215.73,0.00046301,2]
[356460357,1742483483793,-500.0,0.00046301,120]
[356460358,1742483483803,-500.0,0.00046301,120]
[356460359,1742483483812,-500.0,0.00046301,120]
[356460360,1742483483822,-500.0,0.00046301,10]
[356460361,1742483483831,-704.86,0.00046301,120]
[356460362,1742483483842,-500.0,0.00046301,120]
[356460363,1742483483851,-1058.89,0.00046301,120]
[356460364,1742483483860,-500.0,0.00046301,120]
[356460365,1742483483870,-500.0,0.00046301,120]
[356460366,1742483483879,-500.0,0.00046301,120]
[356460367,1742483483889,-280.9,0.00046301,7]
[356460368,1742483483898,-1000.0,0.00046301,120]
[356460369,1742483483907,-509.51109866,0.00046301,120]
[356460370,1742483483917,-500.0,0.00046301,120]
[356460371,1742483483926,-704.1,0.00046301,120]
[356460372,1742483483936,-609.27,0.00046301,120]
[356460373,1742483483945,-500.0,0.00046301,120]
[356460374,1742483484062,-1471.63,0.00046301,120]
[356460375,1742483484073,-500.0,0.00046301,7]
[356460376,1742483484082,-500.0,0.00046301,120]
[356460377,1742483484091,-1183.6,0.00046301,120]
[356460378,1742483484103,-500.0,0.00046301,120]
[356460379,1742483484113,-499.56,0.00046301,120]
[356460380,1742483484122,-500.0,0.00046301,120]
[356460381,1742483484132,-500.0,0.00046301,120]
[356460382,1742483484141,-731.59,0.00046301,2]
[356460383,1742483484151,-744.12,0.00046301,120]
[356460384,1742483484161,-626.22,0.00046301,120]
[356460385,1742483484170,-500.0,0.00046301,60]
[356460386,1742483484179,-351.62568043,0.00046301,120]
[356460387,1742483484188,-500.0,0.00046301,120]
[356460388,1742483484197,-500.0,0.00046301,120]
[356460389,1742483484207,-580.94,0.00046301,120]
[356460390,1742483484217,-500.0,0.00046301,120]
[356460391,1742483484226,-500.0,0.00046301,120]
[356460392,1742483484235,-500.0,0.00046301,120]
[356460393,1742483484244,-500.0,0.00046301,120]
[356460394,1742483484254,-540.47,0.00046301,120]
[356460395,1742483484264,-500.0,0.00046301,120]
[356460396,1742483484273,-521.02,0.00046301,120]
[356460397,1742483484283,-500.0,0.00046301,120]
[356460398,1742483484293,-404.92,0.00046301,120]
[356460399,1742483484302,-330.38,0.00046301,120]
[356460400,1742483484311,-49576.28,0.00046301,120]
[356460401,1742483484321,-541.66,0.00046301,120]
[356460402,1742483484331,-500.45,0.00046301,2]
[356460403,1742483484340,-153.75,0.00046302,120]
[356460404,1742483484350,-152.0,0.00046405,21]
[356460405,1742483484359,-50000.0,0.000465,28]
[356460406,1742483484368,-1016.39,0.000465,14]
[356460407,1742483484378,-150.0,0.00046547,120]
[356460408,1742483484387,-1215.73,0.00046575,2]
[356460409,1742483484396,-500.0,0.00046575,120]
[356460410,1742483484405,-500.0,0.00046575,120]
[356460411,1742483484415,-500.0,0.00046575,120]
[356460412,1742483484424,-534.17,0.00046575,10]
[356460413,1742483484433,-704.86,0.00046575,120]
[356460414,1742483484443,-500.0,0.00046575,120]
[356460415,1742483484452,-1058.89,0.00046575,120]
[356460416,1742483484461,-296.51,0.00046575,120]
[356460417,1742483484470,-500.0,0.00046575,120]
[356460418,1742483484480,-500.0,0.00046575,120]
[356460419,1742483484489,-592.39418822,0.00046575,120]
[356460420,1742483484498,-280.9,0.00046575,7]
[356460421,1742483484507,-1000.0,0.00046575,120]
[356460422,1742483484516,-500.0,0.00046575,120]
[356460423,1742483484526,-704.1,0.00046575,120]
[356460424,1742483484536,-500.0,0.00046575,120]
[356460425,1742483484546,-1471.63,0.00046575,120]
[356460426,1742483484555,-500.0,0.00046575,7]
[356460427,1742483484565,-500.0,0.00046575,120]
[356460428,1742483484575,-1183.6,0.00046575,120]
[356460429,1742483484587,-500.0,0.00046575,120]
[356460430,1742483484596,-500.0,0.00046575,120]
[356460431,1742483484606,-500.0,0.00046575,120]
[356460432,1742483484615,-731.59,0.00046575,2]
[356460433,1742483484626,-744.12,0.00046575,120]
[356460434,1742483484635,-500.0,0.00046575,60]
[356460435,1742483484644,-328.03,0.00046575,120]
[356460436,1742483484654,-500.0,0.00046575,120]
[356460437,1742483484665,-500.0,0.00046575,120]
[356460438,1742483484675,-557.85862145,0.00046575,120]
[356460439,1742483484684,-500.0,0.00046575,120]
[356460440,1742483484694,-277.42,0.00046575,120]
[356460441,1742483484703,-427.04238143,0.00046575,120]
[356460442,1742483484714,-500.0,0.00046575,120]
[356460443,1742483484725,-500.0,0.00046575,120]
[356460444,1742483484734,-500.0,0.00046575,120]
[356460445,1742483484746,-49576.28,0.00046575,120]
[356460446,1742483484755,-541.66,0.00046575,120]
[356460447,1742483484765,-150.0,0.00046589,120]
[356460448,1742483484775,-31433.52755185,0.0004673,30]
[356460449,1742483484784,-500.0,0.00046735,120]
[356460450,1742483484794,-3637.0,0.0004678,30]
[356460451,1742483484804,-267.11393848,0.00046798,120]
[356460452,1742483484814,-3108.67956187,0.00046841,120]
[356460453,1742483484824,-1215.73,0.00046849,2]
[356460454,1742483484834,-500.0,0.00046849,120]
[356460455,1742483484843,-500.0,0.00046849,120]
[356460456,1742483484853,-500.0,0.00046849,120]
[356460457,1742483484863,-704.86,0.00046849,120]
[356460458,1742483484872,-500.0,0.00046849,120]
[356460459,1742483484882,-1058.89,0.00046849,120]
[356460460,1742483484891,-500.0,0.00046849,120]
[356460461,1742483484900,-500.0,0.00046849,120]
[356460462,1742483484910,-280.9,0.00046849,7]
[356460463,1742483484919,-1000.0,0.00046849,120]
[356460464,1742483484928,-500.0,0.00046849,120]
[356460465,1742483484938,-704.1,0.00046849,120]
[356460466,1742483484947,-602.58,0.00046849,120]
[356460467,1742483484957,-1471.63,0.00046849,120]
[356460468,1742483484966,-500.0,0.00046849,7]
[356460469,1742483484976,-500.0,0.00046849,120]
[356460470,1742483484986,-1183.6,0.00046849,120]
[356460471,1742483484995,-348.98,0.00046849,120]
[356460472,1742483485005,-500.0,0.00046849,120]
[356460473,1742483485014,-500.0,0.00046849,120]
[356460474,1742483485023,-731.59,0.00046849,2]
[356460475,1742483485035,-744.12,0.00046849,120]
[356460476,1742483485044,-582.20924662,0.00046849,60]
[356460477,1742483485054,-500.0,0.00046849,120]
[356460478,1742483485063,-500.0,0.00046849,120]
[356460479,1742483485072,-544.51,0.00046849,120]
[356460480,1742483485082,-258.05499667,0.00046849,120]
[356460481,1742483485091,-500.0,0.00046849,120]
[356460482,1742483485101,-49576.28,0.00046849,120]
[356460483,1742483485110,-541.66,0.00046849,120]
[356460484,1742483485120,-27659.75939813,0.000469,30]
[356460485,1742483485129,-581.71,0.00046969,2]
[356460486,1742483485138,-50000.0,0.00047,29]
[356460487,1742483485147,-759.58536177,0.00047,120]
[356460488,1742483485157,-1000000.0,0.00047,120]
[356460489,1742483485166,-900.0,0.00047,2]
[356460490,1742483485177,-152.0,0.00047048,22]
[356460491,1742483485187,-1215.73,0.00047123,2]
[356460492,1742483485197,-500.0,0.00047123,120]
[356460493,1742483485206,-500.0,0.00047123,120]
[356460494,1742483485215,-304.93,0.00047123,120]
[356460495,1742483485225,-704.86,0.00047123,120]
[356460496,1742483485235,-500.0,0.00047123,120]
[356460497,1742483485244,-1058.89,0.00047123,120]
[356460498,1742483485254,-500.0,0.00047123,120]
[356460499,1742483485263,-500.0,0.00047123,120]
[356460500,1742483485272,-280.9,0.00047123,7]
[356460501,1742483485282,-1000.0,0.00047123,120]
[356460502,1742483485297,-500.0,0.00047123,120]
[356460503,1742483485307,-704.1,0.00047123,120]
[356460504,1742483485317,-1471.63,0.00047123,120]
[356460505,1742483485326,-500.0,0.00047123,7]
[356460506,1742483485336,-500.0,0.00047123,120]
[356460507,1742483485345,-1183.6,0.00047123,120]
[356460508,1742483485355,-500.0,0.00047123,120]
[356460509,1742483485364,-500.0,0.00047123,120]
[356460510,1742483485374,-731.59,0.00047123,2]
[356460511,1742483485384,-744.12,0.00047123,120]
[356460512,1742483485394,-500.0,0.00047123,120]
[356460513,1742483485404,-500.0,0.00047123,120]
[356460514,1742483485413,-500.0,0.00047123,120]
[356460515,1742483485423,-49576.28,0.00047123,120]
[356460516,1742483485432,-541.66,0.00047123,120]
[356460517,1742483485442,-500.0,0.00047283,120]
[356460518,1742483485451,-299.44342,0.000473,120]
[356460519,1742483485460,-1215.73,0.00047397,2]
[356460520,1742483485470,-382.48,0.00047397,120]
[356460521,1742483485480,-500.0,0.00047397,120]
[356460522,1742483485489,-704.86,0.00047397,120]
[356460523,1742483485498,-595.8916525,0.00047397,120]
[356460524,1742483485508,-1058.89,0.00047397,120]
[356460525,1742483485517,-500.0,0.00047397,120]
[356460526,1742483485526,-500.0,0.00047397,120]
[356460527,1742483485538,-280.9,0.00047397,7]
[356460528,1742483485547,-1000.0,0.00047397,120]
[356460529,1742483485557,-500.0,0.00047397,120]
[356460530,1742483485566,-704.1,0.00047397,120]
[356460531,1742483485576,-1471.63,0.00047397,120]
[356460532,1742483485588,-500.0,0.00047397,7]
[356460533,1742483485597,-500.0,0.00047397,120]
[356460534,1742483485606,-1183.6,0.00047397,120]
[356460535,1742483485615,-500.0,0.00047397,120]
[356460536,1742483485626,-500.0,0.00047397,120]
[356460537,1742483485635,-731.59,0.00047397,2]
[356460538,1742483485644,-744.12,0.00047397,120]
[356460539,1742483485653,-500.0,0.00047397,120]
[356460540,1742483485664,-500.0,0.00047397,120]
[356460541,1742483485674,-500.0,0.00047397,120]
[356460542,1742483485683,-49576.28,0.00047397,120]
[356460543,1742483485693,-541.66,0.00047397,120]
[356460544,1742483485702,-1000.0,0.00047399,2]
[356460545,1742483485711,-217.45528879,0.000475,120]
[356460546,1742483485721,-1909.12787668,0.000475,90]
[356460547,1742483485731,-5209.61160376,0.000476,2]
[356460548,1742483485740,-1215.73,0.00047671,2]
[356460549,1742483485749,-500.0,0.00047671,120]
[356460550,1742483485759,-704.86,0.00047671,120]
[356460551,1742483485769,-1058.89,0.00047671,120]
[356460552,1742483485778,-500.0,0.00047671,120]
[356460553,1742483485789,-500.0,0.00047671,120]
[356460554,1742483485798,-280.9,0.00047671,7]
[356460555,1742483485807,-764.43105431,0.00047671,120]
[356460556,1742483485817,-500.0,0.00047671,120]
[356460557,1742483485827,-704.1,0.00047671,120]
[356460558,1742483485837,-1471.63,0.00047671,120]
[356460559,1742483485848,-500.0,0.00047671,7]
[356460560,1742483485859,-500.0,0.00047671,120]
[356460561,1742483485868,-1183.6,0.00047671,120]
[356460562,1742483485878,-500.0,0.00047671,120]
[356460563,1742483485887,-500.0,0.00047671,120]
[356460564,1742483485896,-731.59,0.00047671,2]
[356460565,1742483485906,-744.12,0.00047671,120]
[356460566,1742483485915,-500.0,0.00047671,120]
[356460567,1742483485924,-500.0,0.00047671,120]
[356460568,1742483485934,-500.0,0.00047671,120]
[356460569,1742483486038,-49576.28,0.00047671,120]
[356460570,1742483486050,-541.66,0.00047671,120]
[356460571,1742483486061,-152.0,0.00047691,23]
[356460572,1742483486071,-2000.0,0.000477,120]
[356460573,1742483486081,-2000.0,0.000477,120]
[356460574,1742483486090,-475.0,0.000477,120]
[356460575,1742483486100,-500.0,0.00047831,120]
[356460576,1742483486110,-1215.73,0.00047945,2]
[356460577,1742483486120,-500.0,0.00047945,120]
[356460578,1742483486129,-704.86,0.00047945,120]
[356460579,1742483486140,-1058.89,0.00047945,120]
[356460580,1742483486150,-296.51,0.00047945,120]
[356460581,1742483486159,-500.0,0.00047945,120]
[356460582,1742483486168,-500.0,0.00047945,120]
[356460583,1742483486178,-280.9,0.00047945,7]
[356460584,1742483486187,-387.95167054,0.00047945,120]
[356460585,1742483486196,-704.1,0.00047945,120]
[356460586,1742483486206,-1471.63,0.00047945,120]
[356460587,1742483486215,-500.0,0.00047945,7]
[356460588,1742483486225,-300.97255558,0.00047945,120]
[356460589,1742483486235,-1183.6,0.00047945,120]
[356460590,1742483486245,-500.0,0.00047945,120]
[356460591,1742483486255,-239.22942075,0.00047945,120]
[356460592,1742483486264,-731.59,0.00047945,2]
[356460593,1742483486274,-744.12,0.00047945,120]
[356460594,1742483486285,-500.0,0.00047945,120]
[356460595,1742483486295,-500.0,0.00047945,120]
[356460596,1742483486304,-500.0,0.00047945,120]
[356460597,1742483486313,-49576.28,0.00047945,120]
[356460598,1742483486322,-541.66,0.00047945,120]
[356460599,1742483486332,-5289.4793332,0.00048,30]
[356460600,1742483486342,-1004.65542593,0.00048,30]
[356460601,1742483486352,-2093.29424138,0.00048,30]
[356460602,1742483486362,-1029.47677762,0.00048,30]
[356460603,1742483486372,-1078.98593495,0.00048,30]
[356460604,1742483486381,-500.0,0.00048,120]
[356460605,1742483486391,-1000000.0,0.00048,120]
[356460606,1742483486401,-1061.34021845,0.00048,30]
[356460607,1742483486412,-198.0,0.00048,120]
[356460608,1742483486421,-528.15694927,0.00048,120]
[356460609,1742483486431,-409.325246,0.00048,120]
[356460610,1742483486441,-1215.73,0.00048219,2]
[356460611,1742483486450,-500.0,0.00048219,120]
[356460612,1742483486460,-704.86,0.00048219,120]
[356460613,1742483486470,-1058.89,0.00048219,120]
[356460614,1742483486479,-500.0,0.00048219,120]
[356460615,1742483486488,-500.0,0.00048219,120]
[356460616,1742483486498,-280.9,0.00048219,7]
[356460617,1742483486508,-704.1,0.00048219,120]
[356460618,1742483486518,-1471.63,0.00048219,120]
[356460619,1742483486528,-500.0,0.00048219,7]
[356460620,1742483486539,-1183.6,0.00048219,120]
[356460621,1742483486549,-500.0,0.00048219,120]
[356460622,1742483486559,-731.59,0.00048219,2]
[356460623,1742483486570,-744.12,0.00048219,120]
[356460624,1742483486580,-500.0,0.00048219,120]
[356460625,1742483486594,-500.0,0.00048219,120]
[356460626,1742483486604,-500.0,0.00048219,120]
[356460627,1742483486614,-49576.28,0.00048219,120]
[356460628,1742483486623,-541.66,0.00048219,120]
[356460629,1742483486634,-152.0,0.00048334,24]
[356460630,1742483486644,-300.0,0.00048379,120]
[356460631,1742483486654,-260.0,0.000484,30]
[356460632,1742483486665,-1215.73,0.00048493,2]
[356460633,1742483486675,-500.0,0.00048493,120]
[356460634,1742483486684,-704.86,0.00048493,120]
[356460635,1742483486694,-1058.89,0.00048493,120]
[356460636,1742483486704,-500.0,0.00048493,120]
[356460637,1742483486713,-500.0,0.00048493,120]
[356460638,1742483486722,-280.9,0.00048493,7]
[356460639,1742483486731,-704.1,0.00048493,120]
[356460640,1742483486742,-1471.63,0.00048493,120]
[356460641,1742483486752,-500.0,0.00048493,7]
[356460642,1742483486761,-1183.6,0.00048493,120]
[356460643,1742483486770,-500.0,0.00048493,120]
[356460644,1742483486780,-731.59,0.00048493,2]
[356460645,1742483486792,-744.12,0.00048493,120]
[356460646,1742483486801,-454.16,0.00048493,120]
[356460647,1742483486810,-500.0,0.00048493,120]
[356460648,1742483486820,-183.41421116,0.00048493,120]
[356460649,1742483486830,-49576.28,0.00048493,120]
[356460650,1742483486839,-541.66,0.00048493,120]
[356460651,1742483486849,-299.44342,0.000485,120]
[356460652,1742483486858,-3000.0,0.000485,2]
[356460653,1742483486867,-5960.03687548,0.00048517,120]
[356460654,1742483486877,-590000.0,0.000487,120]
[356460655,1742483486886,-3174.34918,0.0004875,35]
[356460656,1742483486895,-1215.73,0.00048767,2]
[356460657,1742483486905,-500.0,0.00048767,120]
[356460658,1742483486915,-704.86,0.00048767,120]
[356460659,1742483486925,-1058.89,0.00048767,120]
[356460660,1742483486934,-500.0,0.00048767,120]
[356460661,1742483486943,-500.0,0.00048767,120]
[356460662,1742483486954,-280.9,0.00048767,7]
[356460663,1742483486963,-704.1,0.00048767,120]
[356460664,1742483486973,-1471.63,0.00048767,120]
[356460665,1742483486983,-500.0,0.00048767,7]
[356460666,1742483486992,-1183.6,0.00048767,120]
[356460667,1742483487002,-500.0,0.00048767,120]
[356460668,1742483487012,-731.59,0.00048767,2]
[356460669,1742483487022,-744.12,0.00048767,120]
[356460670,1742483487032,-500.0,0.00048767,120]
[356460671,1742483487045,-49576.28,0.00048767,120]
[356460672,1742483487056,-541.66,0.00048767,120]
[356460673,1742483487066,-177.10577776,0.000488,120]
[356460674,1742483487075,-26232.70495586,0.000488,120]
[356460675,1742483487085,-499999.0,0.000488,120]
[356460676,1742483487094,-155.8,0.00048877,2]
[356460677,1742483487104,-1874.62299487,0.0004896,29]
[356460678,1742483487114,-152.0,0.00048977,25]
[356460679,1742483487123,-1500.0,0.0004899,120]
[356460680,1742483487133,-568.33604516,0.0004899,120]
[356460681,1742483487142,-19592.41552065,0.00049,14]
[356460682,1742483487152,-233.74069078,0.00049,30]
[356460683,1742483487162,-1331.8223614,0.00049,120]
[356460684,1742483487172,-950.0,0.00049,2]
[356460685,1742483487181,-1215.73,0.00049041,2]
[356460686,1742483487190,-500.0,0.00049041,120]
[356460687,1742483487200,-704.86,0.00049041,120]
[356460688,1742483487210,-1058.89,0.00049041,120]
[356460689,1742483487219,-500.0,0.00049041,120]
[356460690,1742483487229,-500.0,0.00049041,120]
[356460691,1742483487238,-280.9,0.00049041,7]
[356460692,1742483487248,-704.1,0.00049041,120]
[356460693,1742483487258,-1471.63,0.00049041,120]
[356460694,1742483487267,-500.0,0.00049041,7]
[356460695,1742483487276,-1183.6,0.00049041,120]
[356460696,1742483487286,-500.0,0.00049041,120]
[356460697,1742483487296,-731.59,0.00049041,2]
[356460698,1742483487305,-744.12,0.00049041,120]
[356460699,1742483487315,-500.0,0.00049041,120]
[356460700,1742483487325,-49576.28,0.00049041,120]
[356460701,1742483487334,-541.66,0.00049041,120]
[356460702,1742483487343,-581.71,0.00049233,2]
[356460703,1742483487353,-1036.0303444,0.0004925,120]
[356460704,1742483487363,-31817.84592118,0.0004928,120]
[356460705,1742483487372,-400.0,0.00049315,30]
[356460706,1742483487382,-400.0,0.00049315,30]
[356460707,1742483487392,-454.0,0.00049315,30]
[356460708,1742483487402,-291.44400395,0.00049315,120]
[356460709,1742483487411,-500.0,0.00049315,120]
[356460710,1742483487421,-1215.73,0.00049315,2]
[356460711,1742483487430,-500.0,0.00049315,120]
[356460712,1742483487439,-704.86,0.00049315,120]
[356460713,1742483487449,-1058.89,0.00049315,120]
[356460714,1742483487458,-296.51,0.00049315,120]
[356460715,1742483487468,-500.0,0.00049315,120]
[356460716,1742483487477,-500.0,0.00049315,120]
[356460717,1742483487487,-280.9,0.00049315,7]
[356460718,1742483487497,-704.1,0.00049315,120]
[356460719,1742483487506,-1471.63,0.00049315,120]
[356460720,1742483487516,-500.0,0.00049315,7]
[356460721,1742483487526,-1183.6,0.00049315,120]
[356460722,1742483487537,-500.0,0.00049315,120]
[356460723,1742483487547,-731.59,0.00049315,2]
[356460724,1742483487557,-744.12,0.00049315,120]
[356460725,1742483487567,-500.0,0.00049315,120]
[356460726,1742483487577,-49576.28,0.00049315,120]
[356460727,1742483487589,-541.66,0.00049315,120]
[356460728,1742483487599,-405.0,0.00049315,14]
[356460729,1742483487609,-900.0,0.00049315,32]
[356460730,1742483487619,-900.0,0.00049315,33]
[356460731,1742483487630,-695.76167796,0.000495,120]
[356460732,1742483487640,-1000000.0,0.000495,120]
[356460733,1742483487650,-150.98819929,0.000495,120]
[356460734,1742483487659,-1215.73,0.00049589,2]
[356460735,1742483487672,-155.00787654,0.00049589,120]
[356460736,1742483487682,-704.86,0.00049589,120]
[356460737,1742483487692,-1058.89,0.00049589,120]
[356460738,1742483487701,-506.983,0.00049589,120]
[356460739,1742483487711,-500.0,0.00049589,120]
[356460740,1742483487721,-280.9,0.00049589,7]
[356460741,1742483487730,-704.1,0.00049589,120]
[356460742,1742483487739,-1471.63,0.00049589,120]
[356460743,1742483487748,-485.65,0.00049589,7]
[356460744,1742483487758,-1183.6,0.00049589,120]
[356460745,1742483487767,-235.12467503,0.00049589,120]
[356460746,1742483487776,-731.59,0.00049589,2]
[356460747,1742483487788,-744.12,0.00049589,120]
[356460748,1742483487882,-500.0,0.00049589,120]
[356460749,1742483487900,-49576.28,0.00049589,120]
[356460750,1742483487911,-541.66,0.00049589,120]
[356460751,1742483487923,-152.0,0.0004962,26]
[356460752,1742483487932,-150.34093032,0.0004968,20]
[356460753,1742483487941,-299.44342,0.000497,120]
[356460754,1742483487951,-1000000.0,0.0004975,120]
[356460755,1742483487960,-485.61348974,0.000498,30]
[356460756,1742483487969,-500.0,0.00049863,120]
[356460757,1742483487979,-1215.73,0.00049863,2]
[356460758,1742483487988,-704.86,0.00049863,120]
[356460759,1742483487998,-1058.89,0.00049863,120]
[356460760,1742483488007,-500.0,0.00049863,120]
[356460761,1742483488016,-280.9,0.00049863,7]
[356460762,1742483488027,-704.1,0.00049863,120]
[356460763,1742483488037,-1471.63,0.00049863,120]
[356460764,1742483488047,-1183.6,0.00049863,120]
[356460765,1742483488058,-731.59,0.00049863,2]
[356460766,1742483488069,-744.12,0.00049863,120]
[356460767,1742483488079,-500.0,0.00049863,120]
[356460768,1742483488091,-49576.28,0.00049863,120]
[356460769,1742483488102,-541.66,0.00049863,120]
[356460770,1742483488112,-37523.53,0.0004987,120]
[356460771,1742483488121,-50000.0,0.00049996,47]
[356460772,1742483488131,-1000.0,0.00049999,120]
[356460773,1742483488140,-174.55616672,0.00049999,7]
[356460774,1742483488150,-62374.11346386,0.00049999,30]
[356460775,1742483488160,-50000.0,0.0005,50]
[356460776,1742483488170,-1132.05384906,0.0005,2]
[356460777,1742483488180,-2622.00902858,0.0005,5]
[356460778,1742483488189,-1511.33822297,0.0005,2]
[356460779,1742483488199,-150.0,0.0005,10]
[356460780,1742483488208,-448.64,0.0005,10]
[356460781,1742483488218,-874.57417727,0.0005,120]
[356460782,1742483488227,-1029.21821557,0.0005,120]
[356460783,1742483488237,-454.33610143,0.0005,120]
[356460784,1742483488246,-4655.50292396,0.0005,120]
[356460785,1742483488256,-2215.95616025,0.0005,120]
[356460786,1742483488265,-394.14768214,0.0005,120]
[356460787,1742483488275,-464.00367272,0.0005,120]